Cogmind - Beta 17 @@@ ROGUE MODE // 2026.06.30 @ 23:08:09 Player: Petvaria Result: Destroyed by H-71 Marshal with Heavy Mass Driver Performance ------------- Evolutions (7) 3500 Regions Visited (21) 4200 Robots Destroyed (336) 1680 Value Destroyed (14082) 14082 Prototype IDs (74) 1480 Alien Tech Used (0) 0 Bonus (27560) 27560 TOTAL SCORE: 52502 Bonus ------- Triggered High Security 500 High Alert Combat Kills 4353 Follower Combat Kills 5228 Prayed to X0-1V1 5000 Major X0-1V1 Interference 7200 Subatomizer Sterilization 3000 Network Hubs Disabled 400 Met Imprinter 300 Was Imprinted 300 Met Warlord at Base 500 MAIN.C Attacked Warlord 500 Warlord Defense Kills 1696 Met R17 at Cetus 500 Friendly Fire -1917 Cogmind --------- Core Integrity 0/1025 Matter 300/800 Energy 1398/1400 System Corruption 15% Temperature Cool (0) Movement Core (50) Location -3/Research Parts ------- > --- POWER (3) -------- (None) > --- PROPULSION (6) --- (None) > --- UTILITY (9) ------ (None) > --- WEAPON (3) ------- (None) > --- INVENTORY (5) ---- Improved Heavy Siege Treads Ghost Barrier Compact HERF Cannon Improved Plasma Cutter Peak State ------------ > --- POWER ------------ Micro Fission Core Light Antimatter Reactor Zionite Heavy DM Reactor > --- PROPULSION ------- Armored Medium Treads Centrium Heavy Treads Centrium Heavy Treads Improved Thunder Leg > --- UTILITY ---------- Advanced Cryofiber Web Advanced Heat Sink Huge Storage Unit Experimental Optical Array Core Analyzer Advanced Weapon Cycler Centrium Medium Armor Plating Graphene Brace X0-1V1's Piety Tracker > --- WEAPON ----------- Quantum Rifle Quantum Rifle Quantum Rifle > --- INVENTORY -------- Micro Fission Core Micro Fission Core Zionite Heavy DM Reactor Graviton Reactor Improved Thunder Leg Experimental Energy Well Improved Transmission Jammer Advanced Thermal Shield Ghost Barrier Long-range Tractor Beam Hacking Drone Bay Zionite Phaser-S Zionite Phaser-S Zionite Phaser-S Quantum Rifle Quantum Rifle Quantum Rifle Quantum Rifle Compact HERF Cannon Cooled Particle Cannon Vortex Catalyst Activator Improved Remote Datajack Improved Plasma Cutter CR-A16's Pointy Stick [Rating: 175] Favorites ----------- Power Heavy Ion Engine Engine Heavy Ion Engine Power Core Fission Core Reactor Quantum Reactor Propulsion Light Treads Treads Light Treads Leg Myomer Leg Wheel Armored Huge Wheel Utility Huge Storage Unit Device X0-1V1's Piety Tracker Storage Huge Storage Unit Processor Core Analyzer Protection Centrium Medium Armor Plating Weapon Heavy Particle Gun Energy Gun Heavy Particle Gun Energy Cannon Compact Ion Cannon Ballistic Gun Advanced KE Penetrator Ballistic Cannon Hypervelocity Mass Driver Launcher Advanced Micro-nuke Launcher Special Weapon Remote Datajack Impact Weapon Power Maul Slashing Weapon Vibroblade Piercing Weapon Vortex Lance Special Melee Weapon Improved Datajack Build | -11 -10 -9 -8 -8 -7 -7 -7 -7 -6 -6 -6 -6 -6 -6 -5 -5 -5 -5 -4 -4 -3 ------- Run | Yrd Mat Mat Mat Sto Fac Low Low Zio Pro Fac Ext Cet Arc Hub Fac Upp Upp War Pro Fac Res Slots Evolved 14 | . . 2 2 . 2 . . . . 2 . . . . 2 . . . . 2 2 Power 1 | . . . . . 1 . . . . . . . . . . . . . . . . Propulsion 3 | . . 1 1 . . . . . . . . . . . . . . . . . 1 Utility 8 | . . . 1 . . . . . . 2 . . . . 2 . . . . 2 1 Weapon 2 | . . 1 . . 1 . . . . . . . . . . . . . . . . Parts Attached 237 | 7 11 25 15 9 10 2 3 2 1 10 11 11 2 6 4 1 . 14 5 35 53 Power 36 | 1 1 3 1 1 2 . . . . . 3 3 . 1 . . . 1 2 8 9 Engine 8 | 1 1 2 1 1 2 . . . . . . . . . . . . . . . . Core 5 | . . 1 . . . . . . . . 2 . . . . . . . . . 2 Reactor 23 | . . . . . . . . . . . 1 3 . 1 . . . 1 2 8 7 Propulsion 65 | 2 2 9 5 3 3 1 1 . 1 4 6 3 2 1 . . . 1 . 3 18 Treads 48 | 2 1 9 5 3 2 1 1 . 1 4 6 3 2 1 . . . 1 . 3 3 Leg 16 | . 1 . . . . . . . . . . . . . . . . . . . 15 Wheel 1 | . . . . . 1 . . . . . . . . . . . . . . . . Hover . | . . . . . . . . . . . . . . . . . . . . . . Flight . | . . . . . . . . . . . . . . . . . . . . . . Utility 69 | 2 5 5 1 1 4 1 . 1 . 3 1 1 . 4 3 . . 7 2 15 13 Device 47 | 1 1 2 1 . 3 1 . 1 . . 1 . . 4 2 . . 5 1 13 11 Storage 4 | 1 1 1 . . . . . . . . . . . . . . . . . . 1 Processor 4 | . . . . 1 1 . . . . 1 . . . . . . . 1 . . . Hackware . | . . . . . . . . . . . . . . . . . . . . . . Protection 14 | . 3 2 . . . . . . . 2 . 1 . . 1 . . 1 1 2 1 Artifact . | . . . . . . . . . . . . . . . . . . . . . . Weapon 67 | 2 3 8 8 4 1 . 2 1 . 3 1 4 . . 1 1 . 5 1 9 13 Energy Gun 31 | . 2 6 2 3 1 . 2 . . 1 . 1 . . 1 1 . . 1 2 8 Energy Cannon 10 | . . 1 3 1 . . . . . . 1 . . . . . . . . 3 1 Ballistic Gun 12 | 2 . 1 1 . . . . . . . . 3 . . . . . 1 . 2 2 Ballistic Cannon 1 | . . . . . . . . . . . . . . . . . . . . . 1 Launcher 6 | . 1 . 2 . . . . . . . . . . . . . . 1 . 1 1 Special Weapon 3 | . . . . . . . . 1 . 1 . . . . . . . 1 . . . Impact Weapon 1 | . . . . . . . . . . 1 . . . . . . . . . . . Slashing Weapon 1 | . . . . . . . . . . . . . . . . . . . . 1 . Piercing Weapon 1 | . . . . . . . . . . . . . . . . . . 1 . . . Special Melee Weapon 1 | . . . . . . . . . . . . . . . . . . 1 . . . Unidentified Prototypes 38 | . 1 5 5 5 . . . 2 . . . 5 . . . . . 8 . 3 4 Corrupted Parts 5 | . . . . . . . . . 1 1 . . . 1 . . . . 1 . 1 System Corruption 25 | . . . . . . . . . 10 1 . . . 5 . . . . 6 . 3 Parts Lost 70 | . 2 6 . . 1 1 1 . . . 3 . . 2 . . . 1 3 14 36 Power 15 | . . 3 . . 1 . . . . . . . . . . . . . 1 4 6 Propulsion 19 | . 1 2 . . . . 1 . . . 2 . . . . . . . . 1 12 Utility 22 | . 1 1 . . . 1 . . . . 1 . . 2 . . . 1 2 5 8 Weapon 14 | . . . . . . . . . . . . . . . . . . . . 4 10 Highest Loss Streak 14 | . 1 2 . . 1 1 1 . . . 2 . . 2 . . . 1 2 5 14 To Critical Strikes 2 | . . . . . . . . . . . . . . . . . . . . . 2 Average Backups 22 | 4 18 24 22 23 23 23 22 23 23 23 24 24 24 24 23 23 24 23 22 22 22 Power 1 | . 1 1 1 1 . . 1 1 1 1 2 2 2 2 2 2 2 2 3 2 3 Propulsion 2 | 2 3 3 3 4 4 4 2 3 1 4 4 3 3 2 2 2 2 2 2 1 . Utility 8 | . 6 7 6 8 10 9 9 9 9 7 8 9 9 9 8 8 9 9 8 7 7 Weapon 9 | . 7 11 11 9 8 9 9 9 10 10 9 8 9 9 9 8 9 9 8 8 9 Tool/Special . | . . . . . . . . . . . . . . . . . . . . . . Unused Backups 77 | . 1 12 12 9 1 . 3 2 . 3 4 6 . 1 2 4 . 1 . 4 12 Power 7 | . . . 1 . . . . . . . 1 2 . . . . . . . 1 2 Propulsion 18 | . 1 1 2 3 . . 3 . . . . 2 . 1 1 3 . . . . 1 Utility 26 | . . 3 2 3 1 . . 2 . 3 3 2 . . . . . 1 . 1 5 Weapon 24 | . . 8 7 3 . . . . . . . . . . 1 1 . . . 1 3 Tool/Special 2 | . . . . . . . . . . . . . . . . . . . . 1 1 Average Slot Usage (%) 93 | . 99 99 98 99 97 91 98 99 100 99 95 88 86 85 87 88 88 85 80 83 84 Engine 7 | . 14 10 9 9 15 15 15 15 15 13 5 . . . . . . . . . . Reactor 4 | . . . . . . . . . . . 1 11 13 13 11 11 11 8 4 11 9 Treads 22 | . 27 31 35 36 25 15 27 23 30 33 25 21 20 20 17 17 17 17 17 12 5 Leg 1 | . . 1 . . . . . . . . . . . . . . . . . . 14 Device 13 | . 6 13 17 18 14 14 15 15 9 6 5 6 6 11 16 17 17 16 10 20 20 Storage 7 | . 14 11 9 9 7 7 7 7 7 6 6 6 6 6 5 5 5 5 5 5 3 Processor 6 | . . . . 5 7 7 7 7 7 13 13 13 13 7 5 5 5 5 11 10 11 Protection 5 | . 12 8 9 3 . . . . . 5 6 6 6 6 10 11 11 11 11 6 1 Energy Gun 11 | . 5 16 8 8 14 15 15 22 19 9 11 5 . . . 10 11 10 16 11 6 Energy Cannon 4 | . . 5 8 9 7 7 7 7 7 6 4 3 6 4 . . . . . 2 2 Ballistic Gun 3 | . 16 . . . . . . . . . . 10 13 13 11 5 5 2 . 1 1 Peak Build Rating 175 | 7 24 37 42 47 63 71 64 69 60 72 81 129 127 126 135 133 132 149 149 161 175 Average Rating 82 | 5 14 29 41 43 56 62 56 58 58 68 75 116 126 121 131 132 132 134 144 146 143 On Entrance 81 | . 7 24 37 41 46 62 64 59 60 59 72 78 127 126 120 130 132 132 149 140 130 Avg Prop Armor Cover (%) 13 | . . 4 . . 16 16 16 . . . 15 . . . . . . . . 4 9 Naked Turns 43 | . . . . . . . . . . . . . . . . . . . . . 43 Heaviest Build 174 | 15 94 103 107 108 115 115 118 118 118 124 131 145 144 144 142 142 141 152 150 174 153 Greatest Support 190 | 40 40 63 83 80 88 28 80 60 108 118 121 190 190 188 180 180 180 188 188 190 187 Greatest Overweight (x) 4 | 1 4 2 2 1 4 4 4 1 1 1 4 1 . . . . . . . 1 3 Average Overweight (x) . | . 1 1 1 1 1 4 1 1 1 1 2 . . . . . . . . . . Largest Inventory Capacity 25 | 8 25 25 25 25 25 25 25 25 25 25 25 25 25 25 25 25 25 25 25 25 25 Average Capacity 24 | 7 24 25 25 25 25 25 25 25 25 25 25 25 25 25 25 25 25 25 25 25 24 Most Carried 25 | 7 25 25 25 25 25 25 25 25 25 25 25 25 25 25 25 25 25 25 25 25 25 Average Carried 23 | 4 18 24 24 24 24 24 24 24 24 24 24 24 25 24 24 24 25 24 24 24 23 Final Capacity 25 | 8 25 25 25 25 25 25 25 25 25 25 25 25 25 25 25 25 25 25 25 25 5 Final Carried 25 | 6 25 25 25 25 23 25 25 25 25 25 25 25 25 25 25 25 25 25 23 21 5 Class Distribution -------------------- 24% | Scavenger-Gunner 17% | Messiah-Tank 15% | Mutant 10% | Scavenger-Mutant 8% | Scavenger-Tank 6% | Gunner 5% | Commander-Gunner 5% | Messiah-Mutant 4% | Commander-Mutant Dominant Class ---------------- Mutant | -10/Materials Scavenger-Mutant | -9/Materials Mutant | -8/Materials Commander-Mutant | -8/Storage Gunner | -7/Factory Gunner | -7/Lower Caves Scavenger-Gunner | -7/Lower Caves Scavenger-Gunner | -7/Zion Scavenger-Gunner | -6/Proximity Caves Scavenger-Gunner | -6/Factory Commander-Gunner | -6/Extension Scavenger-Tank | -6/Cetus Scavenger-Tank | -6/Archives Scavenger-Tank | -6/Hub_04(d) Messiah-Mutant | -5/Factory Messiah-Tank | -5/Upper Caves Messiah-Tank | -5/Upper Caves Messiah-Tank | -5/Warlord Messiah-Tank | -4/Proximity Caves Messiah-Tank | -4/Factory Scavenger-Tank | -3/Research Resources | -11 -10 -9 -8 -8 -7 -7 -7 -7 -6 -6 -6 -6 -6 -6 -5 -5 -5 -5 -4 -4 -3 ----------- Run | Yrd Mat Mat Mat Sto Fac Low Low Zio Pro Fac Ext Cet Arc Hub Fac Upp Upp War Pro Fac Res Matter Collected 9010 | 330 339 353 392 857 362 48 405 83 145 319 562 228 91 676 260 308 111 242 60 1049 1790 Remotely 940 | . . . . . . . . . . . . . . . . . . . . . 940 Salvage Created 16810 | 126 446 1776 420 1365 647 282 230 . 168 885 535 189 248 858 253 482 . 1013 512 3776 2599 Parts 745 | 19 22 84 25 40 23 12 9 . 10 43 27 11 8 48 13 19 . 35 8 198 91 Haulers Intercepted 16 | . 1 3 1 5 1 . . . . . . . . 4 1 . . . . . . Recyclers Shooed 14 | 1 . 3 1 2 . . . . . 4 1 . . . . . . . . 2 . Parts Field Recycled . | . . . . . . . . . . . . . . . . . . . . . . Retrieved Matter . | . . . . . . . . . . . . . . . . . . . . . . Parts Self-Destructed 69 | . . . . . . 13 9 . 5 . . . . . . 20 3 . 19 . . Prevented 32 | . . . . . . . . . 7 . . . . . . 2 3 . 20 . . Parts Restored . | . . . . . . . . . . . . . . . . . . . . . . Kills | -11 -10 -9 -8 -8 -7 -7 -7 -7 -6 -6 -6 -6 -6 -6 -5 -5 -5 -5 -4 -4 -3 ------- Run | Yrd Mat Mat Mat Sto Fac Low Low Zio Pro Fac Ext Cet Arc Hub Fac Upp Upp War Pro Fac Res Combat Hostiles Destroyed 246 | . 8 28 5 12 9 8 5 . 4 15 6 1 3 5 3 6 . 14 8 57 49 Guns 154 | . 8 21 . 7 7 7 3 . . 4 3 1 3 4 3 6 . 14 8 40 15 Cannons 33 | . . 5 1 3 2 . 2 . . 3 1 . . 1 . . . . . 5 10 AOE 49 | . . . 3 2 . . . . 3 8 . . . . . . . . . 10 23 Classes Destroyed 25 | 2 6 3 1 2 1 . . . 1 1 1 . . 1 . . . 2 . 2 2 Worker 18 | . 1 3 . 1 . . . . . 4 . . . 2 . . . . . 4 3 Builder 7 | . 1 2 . 1 . . . . . . . . . . . . . . . 2 1 Tunneler 7 | 5 . . . . . . . . . . . . . . . . . . . 1 1 Hauler 16 | . 1 3 1 5 1 . . . . . . . . 4 1 . . . . . . Recycler 20 | 1 . 4 3 5 2 . . . . 1 . . . . . . . . . 2 2 Mechanic 5 | . . . . 1 . . . . . . . . . . . . . 1 . 2 1 Operator 4 | . . . . 1 . . . . . . . . . 1 1 . . . . 1 . Drone 1 | . . . . . . . . . . . . . . . . . . . . . 1 Watcher 4 | . 2 1 . . . . . . . . . . . . . . . . . . 1 Swarmer 46 | . . . 3 . 3 7 . . 3 3 . . . . 2 . . . 2 18 5 Cutter 3 | . . . . . . . . . . 3 . . . . . . . . . . . Saboteur 2 | . . . . . . . . . . . . . . . . . . . . . 2 Grunt 97 | . 7 13 . 9 6 . 4 . 1 3 . . . 2 . 3 . 8 3 14 24 Brawler 15 | . . 2 . 1 . . . . . . 2 . . . . 2 . 2 2 1 3 Duelist 9 | . . 3 . 1 . . . . . . . . . . . . . 1 . 3 1 Protector 3 | . . . . . . . . . . . . . . . . . . 1 . 1 1 Sentry 26 | . 1 5 2 1 . 1 . . . 2 2 . 3 2 . 1 . . 1 4 1 Specialist 2 | . . . . . . . . . . . . . . . . . . . . 2 . Hunter 20 | . . 5 . 1 . . . . . 2 . . . . 1 . . 1 . 3 7 Programmer 19 | . . . . . 1 . 1 . . 2 . . . 1 . . . . . 10 4 Heavy 1 | . . . . . . . . . . . . . . . . . . . . 1 . Behemoth 2 | . . . . . . . . . . . 2 . . . . . . . . . . Cetus Guard 1 | . . . . . . . . . . . . 1 . . . . . . . . . Executioner 1 | . . . . . . . . . . . . . . . . . . 1 . . . Z-Courier 1 | . . . . . . . . . . . 1 . . . . . . . . . . Z-Heavy 2 | . . . . . . . . . . . . . . 1 . 1 . . . . . Decomposer 1 | . . . . . . 1 . . . . . . . . . . . . . . . Thug 3 | . . . . . . . . . . . . 1 . . . . . 2 . . . Guerrilla 1 | . . . . . . . . . . . . 1 . . . . . . . . . Wizard 1 | . . . . . . . . . . 1 . . . . . . . . . . . Mutant 1 | . . . . . . . . . 1 . . . . . . . . . . . . Best Kill Streak 14 | 3 3 12 3 7 3 4 4 . 3 11 2 1 2 3 2 3 . 6 4 14 13 Combat Bots Only 11 | . 3 5 3 2 3 4 4 . 3 5 2 1 2 2 2 3 . 6 4 11 11 Max Kills in Single Turn 4 | 2 1 2 2 2 1 1 1 . 2 3 1 2 1 1 1 2 . 2 2 2 4 Gunslinging 1 | . . 1 . . . . . . . . . . . . . 1 . 1 . 1 1 Exploded 3 | . . . 2 2 . . . . 2 3 . . . . . . . . . 2 3 Melee . | . . . . . . . . . . . . . . . . . . . . . . Uniques/NPCs Destroyed . | . . . . . . . . . . . . . . . . . . . . . . Combat | -11 -10 -9 -8 -8 -7 -7 -7 -7 -6 -6 -6 -6 -6 -6 -5 -5 -5 -5 -4 -4 -3 -------- Run | Yrd Mat Mat Mat Sto Fac Low Low Zio Pro Fac Ext Cet Arc Hub Fac Upp Upp War Pro Fac Res Hostile Shots Fired 1794 | . 61 129 21 15 46 69 72 . 19 78 100 19 7 65 39 26 3 52 58 414 501 Missed 562 | . 12 35 8 3 16 23 25 . 9 25 36 7 1 24 7 8 1 17 17 111 177 Hits 1232 | . 49 94 13 12 30 46 47 . 10 53 64 12 6 41 32 18 2 35 41 303 324 Melee 52 | . . 12 . . . . . . . 3 2 . . . . 3 . . 1 15 16 Projectile 1180 | . 49 82 13 12 30 46 47 . 10 50 62 12 6 41 32 15 2 35 40 288 308 AOE 12 | . . . . . . . . . . 2 . . . . . . . 10 . . . Critical Strikes 63 | . . 7 . . . . 1 . . 2 3 5 . . . 1 . 7 . 18 19 Actively Blocked 19 | . . . . . . . . . . . . . . . . . . . . 11 8 Part Disruptions 5 | . . . . . . . . . 1 . . . . . . . . 2 . 1 1 Damage Taken 22176 | . 709 1378 122 230 529 548 581 . 206 947 675 363 139 571 352 243 31 1250 727 6469 6106 Core 2914 | . 147 197 20 12 29 54 93 . 18 19 96 27 . 33 24 13 . 78 53 782 1219 Absorbed by Shields 1369 | . . . . . . . . . . . 65 . . 164 136 88 12 337 221 346 . Reduced by Siege Mode 12 | . . . . . . . . . . . . . . . . . . . . 12 . Redirected to Shielding 459 | . . . . . . . . . . . . . . . 42 . . 163 111 143 . Ignored by Resistances 1013 | . . 6 15 8 18 44 12 . 7 17 2 . . 65 . . . 16 5 538 260 Regen/Repaired (Parts) 4415 | . 172 . . . . . . 896 . 175 . . . . 36 . . 471 . 2549 116 Core Remaining (%) 68 | 100 82 28 . 95 . . . . 54 . . . . 69 . . . . 76 40 . Volleys Fired 779 | 10 41 97 23 64 30 16 10 . 7 32 53 10 8 26 19 10 1 34 16 136 136 Largest 3 | 2 2 2 2 2 3 3 3 . 1 3 3 3 3 3 3 3 3 3 3 3 3 Hottest 282 | 40 80 130 129 151 206 206 206 . 36 206 220 200 160 160 130 155 155 155 180 278 282 Shots Fired 1715 | 20 66 193 40 119 84 46 28 . 8 71 88 29 24 70 38 30 3 102 48 363 245 Gun 1239 | 20 62 156 17 55 54 30 20 . . 38 33 24 16 47 38 30 3 102 48 303 143 Cannon 377 | . . 37 21 61 29 16 8 . 1 23 24 5 8 23 . . . . . 47 74 Launcher 68 | . 4 . 2 3 1 . . . 7 9 1 . . . . . . . . 13 28 Special 31 | . . . . . . . . . . 1 30 . . . . . . . . . . Kinetic 369 | 20 52 . . . . . . . . . . 12 16 47 37 15 1 34 4 67 64 Thermal 924 | . 10 193 38 116 83 46 28 . 1 61 57 17 8 23 . . . . . 102 141 Explosive 42 | . 4 . 2 1 1 . . . 2 5 1 . . . . . . . . . 26 Electromagnetic 27 | . . . . 2 . . . . 5 4 . . . . . . . . . 13 3 Entropic 2 | . . . . . . . . . . . . . . . . . . . . . 2 Phasic 320 | . . . . . . . . . . . . . . . 1 15 2 68 44 181 9 Robot Hit Streak 38 | 6 9 25 18 21 13 25 12 . 3 18 38 14 13 13 12 7 5 12 6 19 16 Robot Miss Streak 7 | 2 4 5 3 3 2 2 1 . 1 1 1 1 1 3 3 5 . 3 6 7 5 Penetration Max 1 | . . . . . . . . . . . . 1 . 1 1 . . 1 . 1 1 Secondary Targets 32 | . 1 3 . . . . . . . . 1 . . . 1 5 . 6 3 8 4 Max Gunslinging Chain 1 | . 1 1 . . . . . . . . 1 . . . 1 1 . 1 1 1 1 Shots Hit Robots 1122 | 13 42 143 27 74 53 27 22 . 4 49 78 20 21 47 21 18 3 81 27 217 135 Core Hits 602 | 7 18 58 10 33 18 11 11 . 9 34 17 6 9 24 9 14 1 36 13 149 115 Critical Kills 18 | . . 1 . . . . . . . . . 1 1 3 . . . 4 . 3 5 Critical Parts Destroyed 31 | . . . . . . . . . . . . 3 2 8 4 . . 1 . 3 10 Critical Strikes 82 | . 1 8 2 2 3 2 . . . 3 1 5 3 11 4 1 . 8 2 11 15 Burn 21 | . 1 7 2 2 3 2 . . . 3 1 . . . . . . . . . . Meltdown 2 | . . 1 . . . . . . . . . . . . . . . . . . 1 Destroy 48 | . . . . . . . . . . . . 5 3 11 4 . . 5 . 6 14 Intensify 11 | . . . . . . . . . . . . . . . . 1 . 3 2 5 . Melee Attacks 27 | . . . . . . . . . . 5 . . . 8 5 . . 9 . . . Impact 18 | . . . . . . . . . . 5 . . . 8 5 . . . . . . Slashing . | . . . . . . . . . . . . . . . . . . . . . . Piercing . | . . . . . . . . . . . . . . . . . . . . . . Sneak Attacks 9 | . . . . . . . . . . . . . . . . . . 9 . . . Combat Hostiles . | . . . . . . . . . . . . . . . . . . . . . . Follow-up Attacks . | . . . . . . . . . . . . . . . . . . . . . . Damage Inflicted 37954 | 173 573 2499 720 1981 1345 570 515 . 670 2116 1178 670 571 1603 607 600 88 2523 1009 8983 8960 Guns 21681 | 173 537 1943 232 797 796 405 338 . . 639 612 532 376 979 583 600 88 2523 1009 6085 2434 Cannons 6234 | . . 491 261 824 469 165 177 . . 508 566 138 195 420 . . . . . 1032 988 Explosions 9664 | . . . 225 331 . . . . 670 969 . . . 175 . . . . . 1779 5515 Melee . | . . . . . . . . . . . . . . . . . . . . . . Ramming 375 | . 36 65 2 29 80 . . . . . . . . 29 24 . . . . 87 23 Kinetic 6560 | 173 463 . . . . . . . . . . 336 376 979 583 237 22 807 52 1630 902 Thermal 15266 | . 74 2434 493 1621 1265 570 515 . . 1147 1178 334 195 420 . . . . . 2841 2179 Explosive 5432 | . . . 225 . . . . . 195 677 . . . . . . . . . . 4335 Electromagnetic 2574 | . . . . 331 . . . . 475 292 . . . 175 . . . . . 1224 77 Impact . | . . . . . . . . . . . . . . . . . . . . . . Slashing . | . . . . . . . . . . . . . . . . . . . . . . Piercing . | . . . . . . . . . . . . . . . . . . . . . . Entropic 1180 | . . . . . . . . . . . . . . . . . . . . . 1180 Phasic 6567 | . . . . . . . . . . . . . . . . 363 66 1716 957 3201 264 Highest Corruption 15 | . 4 15 3 . . . 1 1 10 1 4 6 6 11 . . . 1 6 10 15 Average Corruption 3 | . 4 6 3 . . . 1 1 10 1 2 4 6 5 . . . 1 1 3 4 Corruption Purged 6 | . . . . . . . . . . . . . . 6 . . . . . . . Corruption Blocked . | . . . . . . . . . . . . . . . . . . . . . . Effects 157 | . 14 27 1 . . . 1 2 2 4 20 12 6 11 . . . . . 28 29 Message Errors 37 | . 4 7 . . . . . . 1 . 5 3 2 2 . . . . . 3 10 Matter Fused 36 | . 3 4 . . . . 1 1 1 1 5 4 1 4 . . . . . 6 5 Heat Flow Errors 24 | . 3 6 1 . . . . . . 1 2 1 1 1 . . . . . 3 5 Energy Discharges 11 | . 2 1 . . . . . . . . 1 1 . 2 . . . . . 1 3 Parts Rejected 2 | . . . . . . . . . . . . . . . . . . . . 1 1 Parts Fused 2 | . . . . . . . . . . . . 1 . . . . . . . 1 . Data Loss (minor) 22 | . 1 6 . . . . . 1 . 1 3 1 1 . . . . . . 7 1 Data Loss (major) 8 | . 1 1 . . . . . . . 1 1 . 1 . . . . . . 2 1 Misfires 6 | . . 1 . . . . . . . . 2 . . . . . . . . 2 1 Alerts 4 | . . . . . . . . . . . 1 1 . 1 . . . . . . 1 Weapon Failures 5 | . . 1 . . . . . . . . . . . 1 . . . . . 2 1 Overload Shots 16 | . . . . 1 . . . . . . 1 . . . . . . . . 2 12 Effects 2 | . . . . . . . . . . . . . . . . . . . . . 2 Energy Bleed 1 | . . . . . . . . . . . . . . . . . . . . . 1 Short Circuit 1 | . . . . . . . . . . . . . . . . . . . . . 1 Overflow Damage 319 | . 1 . 6 31 28 22 5 . . 10 . . . . . . . . . 25 191 Projectiles 113 | . . . 6 31 28 22 5 . . . . . . . . . . . . 21 . Explosions 197 | . . . . . . . . . . 10 . . . . . . . . . 4 183 Melee 9 | . 1 . . . . . . . . . . . . . . . . . . . 8 Knockbacks 15 | . . 1 . . 1 . . . . . . . . . . . . . . 1 12 Impact 4 | . . 1 . . 1 . . . . . . . . . . . . . . 1 1 Kinetic 11 | . . . . . . . . . . . . . . . . . . . . . 11 Secondary . | . . . . . . . . . . . . . . . . . . . . . . Self-Inflicted Damage 1052 | . . . . 11 34 . . . 38 109 . . . 163 . . . . . 385 312 Shots 30 | . . . . 1 2 . . . 2 3 . . . 2 . . . . . 16 4 Rammed 31 | . 7 4 3 2 5 . . . . . . . . 4 2 . . . . 4 . Targets Rammed 38 | . 8 5 3 5 5 . . . . . . . . 4 2 . . . . 5 1 Kicked 1 | . . . . . . . . . . . . . . . . . . . . . 1 Crushed 6 | . 1 1 . 3 . . . . . . . . . . . . . . . 1 . Highest Temperature 708 | . 262 329 55 . 399 179 266 . 28 489 513 294 336 377 60 29 3 18 205 708 469 Average Temperature 122 | . 58 100 30 . 106 63 114 . 15 153 140 91 163 161 36 8 2 7 85 146 120 Received Heat Transfer 3471 | . 375 411 9 99 90 30 135 . 45 126 165 18 9 126 . 89 . 240 158 479 867 Effects 27 | . . 1 . . 1 . 2 . . 3 3 . . 3 . . . . . 13 1 Shutdowns 3 | . . . . . . . . . . 1 2 . . . . . . . . . . Energy Bleed 2 | . . . . . . . . . . . 1 . . . . . . . . 1 . Interference 9 | . . . . . . . 2 . . . . . . . . . . . . 7 . Matter Decay 2 | . . 1 . . . . . . . . . . . . . . . . . . 1 Short Circuit 3 | . . . . . . . . . . . . . . 1 . . . . . 2 . Damage (minor) 4 | . . . . . 1 . . . . . . . . 2 . . . . . 1 . Damage (major) 2 | . . . . . . . . . . 2 . . . . . . . . . . . Damage (core) 2 | . . . . . . . . . . . . . . . . . . . . 2 . Siege Activations 1 | . . . . . . . . . . . . . . . . . . . . 1 . Total Turns 11 | . . . . . . . . . . . . . . . . . . . . 11 . Longest Duration 11 | . . . . . . . . . . . . . . . . . . . . 11 . Martial Activations . | . . . . . . . . . . . . . . . . . . . . . . Shielding Activations . | . . . . . . . . . . . . . . . . . . . . . . Robots Disrupted . | . . . . . . . . . . . . . . . . . . . . . . Combat Hostiles . | . . . . . . . . . . . . . . . . . . . . . . Robots Corrupted 5 | . 1 . . . . . . . 1 . . . . . . . . . . 2 1 Combat Hostiles 3 | . . . . . . . . . 1 . . . . . . . . . . 2 . Parts Fried 20 | . . . . . . . . . . 3 . . . 2 . . . . 2 11 2 Impact Corruptions 4 | . 2 . . . . . . . . . . . . . . . . . . 1 1 Robots Melted 7 | . . 2 1 . . 1 . . . . 2 . . . . . . . . . 1 Combat Hostiles 7 | . . 2 1 . . 1 . . . . 2 . . . . . . . . . 1 Parts Melted 58 | . 1 15 1 3 4 2 2 . . 7 6 1 . . . 1 . . . 6 9 Heat Transferred 25492 | . 296 6004 1110 2941 2257 1147 814 . . 2035 2035 518 259 555 . . . . . 2696 2825 Parts Sabotaged 2 | . . . . . . . . . . . . . . . . . . . . . 2 Parts Stolen . | . . . . . . . . . . . . . . . . . . . . . . Parts Stripped . | . . . . . . . . . . . . . . . . . . . . . . Power Chain Reactions 3 | . . . . . . . . . . 2 . . . . . . . . . 1 . Alert | -11 -10 -9 -8 -8 -7 -7 -7 -7 -6 -6 -6 -6 -6 -6 -5 -5 -5 -5 -4 -4 -3 ------- Run | Yrd Mat Mat Mat Sto Fac Low Low Zio Pro Fac Ext Cet Arc Hub Fac Upp Upp War Pro Fac Res Maximum Alert Level 5 | . . 1 . 2 1 . . . . 2 2 2 1 3 3 . . . . 5 5 Low Security (%) 35 | 100 100 50 100 10 19 . . . . 37 16 . 94 13 . . . . . 4 . Level 1 22 | . . 49 . 42 80 . . . . 20 61 19 5 7 . . . . . 5 . Level 2 18 | . . . . 46 . . . . . 41 22 80 . 56 83 . . . . 10 . Level 3 12 | . . . . . . . . . . . . . . 22 16 . . . . 27 59 Level 4 8 | . . . . . . . . . . . . . . . . . . . . 38 27 Level 5 1 | . . . . . . . . . . . . . . . . . . . . 13 . High Security 1 | . . . . . . . . . . . . . . . . . . . . . 12 Max Security . | . . . . . . . . . . . . . . . . . . . . . . Sterilizations 1 | . . . . . 1 . . . . . . . . . . . . . . . . Peak Influence 1874 | 10 80 331 181 657 346 . . . . 459 667 482 215 928 820 . . . . 1789 1874 Initial 937 | . . 1 113 15 202 . . . . 84 205 360 158 51 450 . . . . 163 937 Average 470 | 2 8 173 51 397 237 . . . . 266 322 425 178 509 596 . . . . 1141 1168 Influence Increases 14134 | 30 292 854 208 1590 528 180 120 . 285 899 1070 347 140 1227 632 336 24 459 557 2444 1912 Destroy 0b10 Robot/C 7620 | . 160 620 100 800 300 160 100 . 180 440 480 160 80 340 220 260 20 400 460 1240 1100 Destroy 0b10 Robot/NC 585 | 30 25 75 25 115 25 . . . . 55 10 10 . 65 20 . . 10 . 70 50 Destroy Leader 1204 | . 46 110 32 176 44 20 20 . 30 124 32 . . 92 54 20 . . 30 252 122 Allied During Kill 1728 | . . 7 1 403 56 . . . 75 99 463 161 42 113 58 56 4 49 67 46 28 Successful Hack 180 | . 26 6 . 22 5 . . . . 4 7 . . . 26 . . . . 58 26 Disable Machine 1050 | . . . 15 45 75 . . . . 105 30 . 15 285 90 . . . . 330 60 Destroy Structure 1440 | . 35 6 20 29 23 . . . . 72 33 16 3 215 164 . . . . 388 436 Partial Spotted 45 | . . 15 15 . . . . . . . . . . . . . . . . 15 . Lose Combat Pursuer 180 | . . 15 . . . . . . . . 15 . . 15 . . . . . 45 90 Miscellaneous 102 | . . . . . . . . . . . . . . 102 . . . . . . . Influence Decreases 12330 | 30 288 588 441 1182 847 236 190 . 150 615 846 593 389 455 756 651 323 257 682 916 1895 Entered New Map 3740 | . . 3 157 22 243 47 14 . . 51 214 283 239 97 470 295 93 182 384 96 850 Time Decay 6521 | 30 278 475 284 550 474 187 166 . 150 464 502 230 70 278 286 356 230 38 268 640 565 Lost Part 672 | . 10 50 . . 10 2 10 . . . 30 . . 20 . . . 10 30 140 360 Lost Ally 947 | . . 60 . 160 120 . . . . 100 100 80 80 60 . . . 27 . 40 120 Purge Threat 450 | . . . . 450 . . . . . . . . . . . . . . . . . Squads Dispatched 70 | . 1 1 . 6 3 . . . . 10 4 . . 4 2 . . . 1 18 20 Investigation 8 | . . . . 1 1 . . . . . 3 . . . 1 . . . . . 2 Extermination 13 | . . . . . 1 . . . . 3 . . . 1 1 . . . . 5 2 Reinforcement 20 | . 1 1 . 3 1 . . . . 3 1 . . 2 . . . . . 4 4 Assault 20 | . . . . 2 . . . . . . . . . . . . . . 1 5 12 Garrison 9 | . . . . . . . . . . 4 . . . 1 . . . . . 4 . Intercept . | . . . . . . . . . . . . . . . . . . . . . . Searches Triggered . | . . . . . . . . . . . . . . . . . . . . . . Construction Impeded 2 | . . . . . . . . . . 1 1 . . . . . . . . . . Haulers Reinforced 2 | . . . . . . . . . . . . . . . . . . . . 1 1 Active Scanning Responses . | . . . . . . . . . . . . . . . . . . . . . . Cargo Convoy Interrupts 1 | . . . . . . . . . . . . . . . . . . . . . 1 Stealth | -11 -10 -9 -8 -8 -7 -7 -7 -7 -6 -6 -6 -6 -6 -6 -5 -5 -5 -5 -4 -4 -3 --------- Run | Yrd Mat Mat Mat Sto Fac Low Low Zio Pro Fac Ext Cet Arc Hub Fac Upp Upp War Pro Fac Res Distress Signals 30 | . 3 4 1 4 2 . . . . . 4 2 . . . . . 2 . 3 5 Communications Jammed 6 | . . . . . . . . . . . . . . . . . . . . 6 . Distress Signals 3 | . . . . . . . . . . . . . . . . . . . . 3 . Times Spotted 520 | . 20 39 14 43 20 9 9 . 9 17 25 7 4 19 10 13 2 44 23 92 101 Peak Tracking Total 13 | . 5 6 3 5 5 4 4 . 4 4 4 5 2 6 6 5 2 13 7 9 8 Tactical Retreats 10 | . . 1 . . . . . . . . 1 . . 1 . . . . . 3 4 Traps | -11 -10 -9 -8 -8 -7 -7 -7 -7 -6 -6 -6 -6 -6 -6 -5 -5 -5 -5 -4 -4 -3 ------- Run | Yrd Mat Mat Mat Sto Fac Low Low Zio Pro Fac Ext Cet Arc Hub Fac Upp Upp War Pro Fac Res Traps Triggered 9 | . 1 . 2 1 1 . . . . . 2 . . . . . . . . 2 . Indirectly . | . . . . . . . . . . . . . . . . . . . . . . Trap Hack Attempts . | . . . . . . . . . . . . . . . . . . . . . . Triggered . | . . . . . . . . . . . . . . . . . . . . . . Disarmed . | . . . . . . . . . . . . . . . . . . . . . . Reprogrammed . | . . . . . . . . . . . . . . . . . . . . . . Reused . | . . . . . . . . . . . . . . . . . . . . . . Traps Extracted . | . . . . . . . . . . . . . . . . . . . . . . Installed . | . . . . . . . . . . . . . . . . . . . . . . Triggered . | . . . . . . . . . . . . . . . . . . . . . . Machines | -11 -10 -9 -8 -8 -7 -7 -7 -7 -6 -6 -6 -6 -6 -6 -5 -5 -5 -5 -4 -4 -3 ---------- Run | Yrd Mat Mat Mat Sto Fac Low Low Zio Pro Fac Ext Cet Arc Hub Fac Upp Upp War Pro Fac Res Machines Disabled 73 | . . . 1 3 5 . . . . 7 2 . 1 19 6 . . 1 2 22 4 Max in Single Turn 10 | . . . 1 1 2 . . . . 3 1 . 1 9 . . . 1 1 10 1 Garrison Access 3 | . . . . 1 1 . . . . . . . . . . . . . . 1 . Network Hub 2 | . . . . . . . . . . . . . . 2 . . . . . . . Machines Repaired . | . . . . . . . . . . . . . . . . . . . . . . Machines Dismantled 1 | . . . . . . . . . . . . . . . . . . 1 . . . Machines Sabotaged . | . . . . . . . . . . . . . . . . . . . . . . Overloaded Fab Kills . | . . . . . . . . . . . . . . . . . . . . . . Hacking | -11 -10 -9 -8 -8 -7 -7 -7 -7 -6 -6 -6 -6 -6 -6 -5 -5 -5 -5 -4 -4 -3 --------- Run | Yrd Mat Mat Mat Sto Fac Low Low Zio Pro Fac Ext Cet Arc Hub Fac Upp Upp War Pro Fac Res Machines Accessed 37 | . 5 2 1 11 4 . . . . 1 3 . . . 1 . 2 1 . 4 2 Terminals 19 | . 4 . . 10 2 . . . . . 3 . . . . . . . . . . Fabricators . | . . . . . . . . . . . . . . . . . . . . . . Repair Stations 8 | . 1 . 1 . . . . . . 1 . . . . 1 . . . . 2 2 Recycling Units . | . . . . . . . . . . . . . . . . . . . . . . Scanalyzers 3 | . . 2 . . 1 . . . . . . . . . . . . . . . . Garrison Access 4 | . . . . 1 1 . . . . . . . . . . . . . . 2 . Total Hacks 108 | . 17 8 2 28 7 . . . . 2 4 . . . 2 . 7 1 . 24 6 Successful 58 | . 11 5 . 11 2 . . . . 2 2 . . . 2 . 7 1 . 12 3 Failed 49 | . 6 2 2 17 5 . . . . . 2 . . . . . . . . 12 3 Catastrophic 8 | . . . . 2 2 . . . . . 1 . . . . . . . . 1 2 Database Lockouts 1 | . . 1 . . . . . . . . . . . . . . . . . . . Manual 62 | . 12 . . 4 3 1 . . . 12 9 . . 3 9 . . . . 3 6 Terminals 42 | . 11 . . 24 3 . . . . . 4 . . . . . . . . . . Fabricators . | . . . . . . . . . . . . . . . . . . . . . . Repair Stations 36 | . 6 . 2 . . . . . . 2 . . . . 2 . . . . 18 6 Recycling Units . | . . . . . . . . . . . . . . . . . . . . . . Scanalyzers 10 | . . 8 . . 2 . . . . . . . . . . . . . . . . Garrison Access 12 | . . . . 4 2 . . . . . . . . . . . . . . 6 . Terminal Hacks 19 | . 1 . . 8 . . . . . . 2 . . . . . 7 1 . . . Record 6 | . . . . . . . . . . . . . . . . . 6 . . . . Part Schematic 1 | . 1 . . . . . . . . . . . . . . . . . . . . Open Door 8 | . . . . 4 . . . . . . 2 . . . . . 1 1 . . . Unreport Threat 3 | . . . . 3 . . . . . . . . . . . . . . . . . Hauler Manifests 1 | . . . . 1 . . . . . . . . . . . . . . . . . Fabricator Hacks . | . . . . . . . . . . . . . . . . . . . . . . Repair Station Hacks 24 | . 6 . . . . . . . . 2 . . . . 2 . . . . 11 3 Scan Component 13 | . 3 . . . . . . . . 1 . . . . 1 . . . . 6 2 Repair 11 | . 3 . . . . . . . . 1 . . . . 1 . . . . 5 1 Recycling Unit Hacks . | . . . . . . . . . . . . . . . . . . . . . . Scanalyzer 5 | . . 5 . . . . . . . . . . . . . . . . . . . Retrieve Study 5 | . . 5 . . . . . . . . . . . . . . . . . . . Garrison Access Hacks 3 | . . . . 1 1 . . . . . . . . . . . . . . 1 . Seal Access 3 | . . . . 1 1 . . . . . . . . . . . . . . 1 . Unauthorized Hacks 7 | . 4 . . 2 1 . . . . . . . . . . . . . . . . Terminals 7 | . 4 . . 2 1 . . . . . . . . . . . . . . . . Botnet 7 | . 4 . . 2 1 . . . . . . . . . . . . . . . . Fabricators . | . . . . . . . . . . . . . . . . . . . . . . Repair Stations . | . . . . . . . . . . . . . . . . . . . . . . Recycling Units . | . . . . . . . . . . . . . . . . . . . . . . Scanalyzers . | . . . . . . . . . . . . . . . . . . . . . . Garrison Access . | . . . . . . . . . . . . . . . . . . . . . . Data Cores Recovered . | . . . . . . . . . . . . . . . . . . . . . . Used . | . . . . . . . . . . . . . . . . . . . . . . Hacking Detections 26 | . 5 1 1 7 4 . . . . 1 2 . . . 1 . . . . 2 2 Full Trace Events 3 | . . . . 1 . . . . . . 1 . . . . . . . . . 1 Feedback Events . | . . . . . . . . . . . . . . . . . . . . . . Feedback Blocked . | . . . . . . . . . . . . . . . . . . . . . . Robot Schematics Acquired . | . . . . . . . . . . . . . . . . . . . . . . Robots Built . | . . . . . . . . . . . . . . . . . . . . . . Authchips . | . . . . . . . . . . . . . . . . . . . . . . Time . | . . . . . . . . . . . . . . . . . . . . . . Total Robot Build Rating . | . . . . . . . . . . . . . . . . . . . . . . Part Schematics Acquired 21 | . 1 . . . . . . . . 12 . . . . 8 . . . . . . Parts Built . | . . . . . . . . . . . . . . . . . . . . . . Authchips . | . . . . . . . . . . . . . . . . . . . . . . Time . | . . . . . . . . . . . . . . . . . . . . . . Total Part Build Rating . | . . . . . . . . . . . . . . . . . . . . . . Part Studies Acquired 5 | . . 5 . . . . . . . . . . . . . . . . . . . Parts Repaired 10 | . 3 . . . . . . . . 1 . . . . 1 . . . . 4 1 Time 626 | . 78 . . . . . . . . 44 . . . . 22 . . . . 432 50 Parts Recycled . | . . . . . . . . . . . . . . . . . . . . . . Recycled Matter . | . . . . . . . . . . . . . . . . . . . . . . Retrieved Matter . | . . . . . . . . . . . . . . . . . . . . . . Retrieved Components . | . . . . . . . . . . . . . . . . . . . . . . Parts Scanalyzed . | . . . . . . . . . . . . . . . . . . . . . . Part Schematics Acquired . | . . . . . . . . . . . . . . . . . . . . . . Parts Damaged . | . . . . . . . . . . . . . . . . . . . . . . Bothacking | -11 -10 -9 -8 -8 -7 -7 -7 -7 -6 -6 -6 -6 -6 -6 -5 -5 -5 -5 -4 -4 -3 ------------ Run | Yrd Mat Mat Mat Sto Fac Low Low Zio Pro Fac Ext Cet Arc Hub Fac Upp Upp War Pro Fac Res Used RIF Installer . | . . . . . . . . . . . . . . . . . . . . . . Robots Hacked 3 | . . . . . . . . . . 1 1 . . . . . . 1 . . . Non-combat 1 | . . . . . . . . . . . . . . . . . . 1 . . . Combat 2 | . . . . . . . . . . 1 1 . . . . . . . . . . Robot Hacks Applied 3 | . . . . . . . . . . 1 1 . . . . . . 1 . . . parse_system 3 | . . . . . . . . . . 1 1 . . . . . . 1 . . . Relay Couplers Released . | . . . . . . . . . . . . . . . . . . . . . . Fabnet Peak Effective % . | . . . . . . . . . . . . . . . . . . . . . . Robots Rewired 17 | . . . . . . . . . . . 10 . . . . . . 5 2 . . Allies Hacked . | . . . . . . . . . . . . . . . . . . . . . . Hacks Repelled . | . . . . . . . . . . . . . . . . . . . . . . Allies | -11 -10 -9 -8 -8 -7 -7 -7 -7 -6 -6 -6 -6 -6 -6 -5 -5 -5 -5 -4 -4 -3 -------- Run | Yrd Mat Mat Mat Sto Fac Low Low Zio Pro Fac Ext Cet Arc Hub Fac Upp Upp War Pro Fac Res Total Allies 68 | . . 3 4 12 . . . 4 . 8 18 . . 3 2 . . 5 2 . 7 Largest Group 19 | . . 2 4 10 6 . . 4 4 5 19 14 7 6 3 3 2 6 3 2 4 Highest-Rated Group 1040 | . . 21 84 173 109 . . 156 156 361 1040 662 338 452 307 307 222 408 215 185 328 Highest-Rated Ally 159 | . . 21 21 31 29 . . 41 41 146 159 146 137 137 137 137 137 140 140 137 96 Zionite Dispatches 8 | . . . . . . . . . . 2 3 . . 1 1 . . . . . 1 Heavy 2 | . . . . . . . . . . 1 . . . . 1 . . . . . . Light 3 | . . . . . . . . . . . 1 . . 1 . . . . . . 1 Recon 1 | . . . . . . . . . . . 1 . . . . . . . . . . Hero 1 | . . . . . . . . . . 1 . . . . . . . . . . . Offense Resupply 1 | . . . . . . . . . . . 1 . . . . . . . . . . Total Orders 13 | . . . . . 3 . . . . 1 . . . . 3 . . 3 . 3 . STAY 1 | . . . . . . . . . . . . . . . . . . 1 . . . FOLLOW 1 | . . . . . . . . . . . . . . . . . . 1 . . . EXPLORE 8 | . . . . . 3 . . . . . . . . . 2 . . . . 3 . RETURN 3 | . . . . . . . . . . 1 . . . . 1 . . 1 . . . Ally Attacks 704 | . . 25 5 216 51 . . . 7 33 119 56 13 45 14 15 2 22 21 17 43 Total Damage 23024 | . . 216 63 3368 577 . . . 320 1577 3474 1947 515 1982 1175 1128 128 1514 2129 1366 1545 Kills 184 | . . 5 1 38 8 . . . 5 14 22 10 1 19 10 7 1 10 16 9 8 Allies Corrupted 1 | . . . . . . . . . . . . . . . . . . 1 . . . Allies Melted 1 | . . . . . . . . . . . 1 . . . . . . . . . . X0-1V1 Amusement Gains 460 | . 12 10 10 60 69 10 . . . . 10 . . 45 . . . 80 62 58 34 Good Acts 112 | . 6 11 6 7 5 6 3 . 1 9 6 . . 4 1 2 3 3 3 16 20 Bad Acts 48 | . 7 6 1 1 1 . 3 . 4 . . 5 1 2 . 2 1 1 . 9 4 Intel | -11 -10 -9 -8 -8 -7 -7 -7 -7 -6 -6 -6 -6 -6 -6 -5 -5 -5 -5 -4 -4 -3 ------- Run | Yrd Mat Mat Mat Sto Fac Low Low Zio Pro Fac Ext Cet Arc Hub Fac Upp Upp War Pro Fac Res Active Infowar (turns) 4836 | 19 36 . . . . . . . . . . . . . . . . 22 629 2290 1840 Optics 4780 | . . . . . . . . . . . . . . . . . . 21 629 2290 1840 Seismic 55 | 19 36 . . . . . . . . . . . . . . . . . . . . Cloaking 1 | . . . . . . . . . . . . . . . . . . 1 . . . Jamming 858 | . . . . . . . . . . . . . . . . . . . . 753 105 ECM 2 | . . . . . . . . . . . . . . . . . . . . . 2 Robot Analysis Total . | . . . . . . . . . . . . . . . . . . . . . . Derelict Logs Recovered 4 | . . . . . . . 1 1 . . . . . . . . 1 . 1 . . Drone Launches 12 | . . . . . 3 . . . . 1 . . . . 3 . . 1 . 4 . Drone Recoveries 7 | . . . . . 1 . . . . 1 . . . . 3 . . 1 . 1 . Zionite Intel Received 5 | . . . . . . . . . . 2 . . . . 2 . . . . . 1 Branch Access 2 | . . . . . . . . . . 1 . . . . 1 . . . . . . Prototype Schematics 2 | . . . . . . . . . . 1 . . . . 1 . . . . . . Active Terminals 1 | . . . . . . . . . . . . . . . . . . . . . 1 Exploration | -11 -10 -9 -8 -8 -7 -7 -7 -7 -6 -6 -6 -6 -6 -6 -5 -5 -5 -5 -4 -4 -3 ------------- Run | Yrd Mat Mat Mat Sto Fac Low Low Zio Pro Fac Ext Cet Arc Hub Fac Upp Upp War Pro Fac Res Turns Passed 24524 | 137 2594 1310 977 1598 1205 617 701 2436 663 1293 1353 480 150 615 621 815 481 1625 629 2290 1934 Spaces Moved 10851 | 66 761 418 405 655 580 349 327 1207 316 512 623 218 70 289 305 474 294 861 325 848 948 Core 191 | 16 . . . . . . . . . . . . . . . . . . . . 175 Treads 9101 | 50 761 418 405 655 345 . 304 1207 316 512 233 218 70 289 305 474 294 861 325 848 211 Legs 562 | . . . . . . . . . . . . . . . . . . . . . 562 Wheels 997 | . . . . . 235 349 23 . . . 390 . . . . . . . . . . Hover . | . . . . . . . . . . . . . . . . . . . . . . Flight . | . . . . . . . . . . . . . . . . . . . . . . Fastest Speed 50 | 50 160 200 200 200 145 160 160 200 200 208 160 160 160 160 163 163 163 160 160 155 50 Average Speed 187 | 134 305 214 204 200 181 160 197 200 201 212 170 161 160 160 163 163 163 162 160 165 154 Slowest Speed 480 | 160 480 320 240 200 210 160 200 200 208 216 240 240 160 160 163 163 163 163 160 240 330 Overloaded Moves . | . . . . . . . . . . . . . . . . . . . . . . Propulsion Burnouts . | . . . . . . . . . . . . . . . . . . . . . . Robots Hopped . | . . . . . . . . . . . . . . . . . . . . . . Potential Cave-ins . | . . . . . . . . . . . . . . . . . . . . . . Cave-ins Triggered 1 | . . . . . . . . . . . . . . . . . . 1 . . . Exploration Rate (%) 51 | 5 81 38 40 90 32 58 61 89 54 17 69 56 79 32 16 64 47 88 62 28 30 Regions Visited 21 Branch Regions 13 Pre-discovered Areas 3 | . . . . . . . . 2 . . . . . . . . . . 1 . . Known Exits Taken 11 | . . 1 . 1 1 1 1 . 1 1 . . . . 1 . 1 1 . 1 . Unknown Exits Taken 10 | 1 1 . 1 . . . . 1 . . 1 1 1 1 . 1 . . 1 . . Scrap Searched 8 | . . . . . . 1 2 2 . . . . . . . 2 1 . . . . Spaces Dug 91 | . 17 . . 14 4 . . . . 5 8 . . 8 15 . . . . 13 7 Terrain Destroyed 1044 | . 31 . 23 22 36 4 1 . 9 54 8 . 3 329 26 9 . 28 15 148 298 Melee 18 | . . . . . . . . . . 5 . . . 8 5 . . . . . . Projectile 233 | . . . 2 11 . 4 1 . . 3 . . 3 13 21 9 . 28 15 105 18 AOE 793 | . 31 . 21 11 36 . . . 9 46 8 . . 308 . . . . . 43 280 Terrain Rammed . | . . . . . . . . . . . . . . . . . . . . . . Walls Destroyed . | . . . . . . . . . . . . . . . . . . . . . . Machines Disabled . | . . . . . . . . . . . . . . . . . . . . . . Actions | -11 -10 -9 -8 -8 -7 -7 -7 -7 -6 -6 -6 -6 -6 -6 -5 -5 -5 -5 -4 -4 -3 --------- Run | Yrd Mat Mat Mat Sto Fac Low Low Zio Pro Fac Ext Cet Arc Hub Fac Upp Upp War Pro Fac Res Total 13652 | 94 942 644 526 828 664 372 363 1231 334 647 857 331 91 368 378 495 294 1000 397 1524 1272 Wait 975 | . 80 23 13 45 15 1 13 2 . 57 129 58 10 18 31 2 . 23 22 413 20 Move 10831 | 65 760 417 404 654 579 348 326 1206 315 511 622 217 69 288 304 473 293 860 324 848 948 Hop . | . . . . . . . . . . . . . . . . . . . . . . Pick Up 254 | 12 29 36 23 15 7 2 5 7 2 10 8 10 . 6 5 4 . 9 1 31 32 Fast Attach 105 | 1 . 6 11 8 2 2 . 1 . . 4 5 1 4 1 . . 14 1 12 32 Attach 108 | 6 5 10 7 . 5 . 4 3 2 3 2 2 . 3 2 . . 2 3 23 26 Detach 7 | . . . . . . . . . . . . . . . . . . 1 . 3 3 Swap 195 | . 13 14 8 10 11 1 1 4 7 20 16 8 1 4 6 2 . 5 1 27 36 Drop 276 | . 6 36 34 26 10 2 4 8 1 9 15 21 2 7 3 4 . 23 . 27 38 Fire 779 | 10 41 97 23 64 30 16 10 . 7 32 53 10 8 26 19 10 1 34 16 136 136 Melee 27 | . . . . . . . . . . 5 . . . 8 5 . . 9 . . . Ram . | . . . . . . . . . . . . . . . . . . . . . . Kick 1 | . . . . . . . . . . . . . . . . . . . . . 1 Crush 36 | . 8 5 3 5 5 . . . . . . . . 4 2 . . . . 4 . Escape Stasis 8 | . . . . . . . . . . . 8 . . . . . . . . . . Rewire 41 | . . . . 1 . . . . . . . . . . . . . 11 29 . . Trap . | . . . . . . . . . . . . . . . . . . . . . . Miscellaneous 9 | . . . . . . . . . . . . . . . . . . 9 . . . Route ------- -11/Scrapyard -10/Materials (discovered 4 exits: *Mat x2 / [*Min] / [*Sub]) -9/Materials (discovered 3 exits: *Mat x2 / [*Min]) -8/Materials (discovered 2 exits: Fac / *Sto) -8/Storage -7/Factory (discovered 2 exits: *Fac / *Low) -7/Lower Caves -7/Lower Caves (discovered 2 exits: *Fac / *Zio) -7/Zion -6/Proximity Caves -6/Factory (discovered 4 exits: *Low x2 / *Ext x2) -6/Extension (discovered 2 exits: *Fac / [*Cet]) -6/Cetus (discovered 2 exits: *Fac / [*Arc]) -6/Archives (discovered 2 exits: *Fac / *Hub) -6/Hub_04(d) -5/Factory (discovered 2 exits: *Upp x2) -5/Upper Caves -5/Upper Caves (discovered 2 exits: *Fac / *War) -5/Warlord -4/Proximity Caves -4/Factory (discovered 3 exits: *Res x3) -3/Research (discovered 1 exit: *Res) History --------- Turn | Location | Event 10 | -11/Scrapyard | Discovered new exit (range 15) 138 | -11/Scrapyard | Entered Materials 311 | -10/Materials | Build established: Mutant 639 | -10/Materials | Discovered new exit (range 5) 822 | -10/Materials | Discovered new exit (range 16) 1631 | -10/Materials | Prayed at D.C.S.S. Altar Unit 1781 | -10/Materials | X0-1V1 announced a LAN party 1800 | -10/Materials | Heat dissipation permanently improved by X0-1V1 (+15; -75 max core) 1810 | -10/Materials | X0-1V1 mutated your Weapon slot to Utility slot 1953 | -10/Materials | X0-1V1 foreshadows a heat wave 2104 | -10/Materials | Discovered new exit (range 17) 2220 | -10/Materials | Ambient heat levels rising (+10) 2452 | -10/Materials | Repaired Lgt. Treads 2479 | -10/Materials | Ambient heat levels rising (+10) 2480 | -10/Materials | Repaired Assault Rifle 2532 | -10/Materials | Repaired Assault Rifle 2550 | -10/Materials | Ranged accuracy permanently improved by X0-1V1 (+5%; -50 max core) 2606 | -10/Materials | Discovered new exit (range 14) 2732 | -10/Materials | Entered another Materials area 2732 | -9/Materials | Evolved 2 slots: Propulsion x1, Weapon x1 2817 | -9/Materials | X0-1V1 sent you into danger 2874 | -9/Materials | X0-1V1 sent allied S-10 Pest (x2) 2994 | -9/Materials | Identified exit to Materials 2994 | -9/Materials | X0-1V1 revealed exit location to -8/Materials 3089 | -9/Materials | Build established: Scavenger-Mutant 3110 | -9/Materials | X0-1V1 enhanced Transport squad support 3285 | -9/Materials | Discovered new exit (range 10) 3389 | -9/Materials | X0-1V1 turns hostiles against one another 3415 | -9/Materials | X0-1V1 sent hostile L-31 Rogue (x2) 3432 | -9/Materials | Core integrity fell below 50% 3537 | -9/Materials | System corruption reached 10% 3584 | -9/Materials | X0-1V1 sent you to a vault 3755 | -9/Materials | Central database locked down 3879 | -9/Materials | Build established: Mutant 3997 | -9/Materials | Discovered exit to Materials (range 16) 4042 | -9/Materials | Entered another Materials area 4042 | -8/Materials | Evolved 2 slots: Propulsion x1, Utility x1 4241 | -8/Materials | EM resistance permanently improved by X0-1V1 (+15%; -150 max core) 4472 | -8/Materials | Build established: Scavenger-Mutant 4472 | -8/Materials | Discovered new exit (range 9) 4509 | -8/Materials | Identified exit to Factory 4509 | -8/Materials | X0-1V1 revealed exit location to -7/Factory 4599 | -8/Materials | X0-1V1 activates XOMVISION 4853 | -8/Materials | Build established: Mutant 4946 | -8/Materials | X0-1V1 sent you to a vault 5019 | -8/Materials | Entered Storage 5019 | -8/Storage | Accompanied by 4 allies 5078 | -8/Storage | Met a pair of Derelict thieves 5089 | -8/Storage | X0-1V1 activates XOMVISION 5233 | -8/Storage | Build established: Scavenger-Mutant 5576 | -8/Storage | Assisted by bots powering up and referring to "LRC-V3" 5586 | -8/Storage | X0-1V1 announced a LAN party 5613 | -8/Storage | Found Prototype Processor 5613 | -8/Storage | Identified Exp. Targeting Computer 5881 | -8/Storage | Build established: Commander-Mutant 6458 | -8/Storage | X0-1V1 revealed exit location to -7/Factory 6617 | -8/Storage | Entered Factory 6617 | -7/Factory | Accompanied by 6 allies 6617 | -7/Factory | Evolved 2 slots: Power x1, Weapon x1 6743 | -7/Factory | X0-1V1 released a cloud of subatomizers 6801 | -7/Factory | X0-1V1 sent hostile S-27 Virus (x4) 6801 | -7/Factory | Lost 3 allies 6847 | -7/Factory | Lost 3 allies 7346 | -7/Factory | Build established: Gunner 7407 | -7/Factory | Sterilization system engaged 7407 | -7/Factory | Non-combat units ordered to evacuate 7507 | -7/Factory | Combat units ordered to evacuate 7707 | -7/Factory | Ambient heat levels rising (+10) 7716 | -7/Factory | Discovered new exit (range 15) 7740 | -7/Factory | Identified exit to Factory 7809 | -7/Factory | Discovered new exit (range 7) 7819 | -7/Factory | Identified exit to Lower Caves 7822 | -7/Factory | Entered Lower Caves 7926 | -7/Lower Caves | Acquired the password to a Derelict Tinkerer's latest research 7941 | -7/Lower Caves | Found Prototype Special Weapon 7967 | -7/Lower Caves | Encountered a Warlord checkpoint 7992 | -7/Lower Caves | Found DCF Scrap (11 items) 8176 | -7/Lower Caves | Identified exit to Lower Caves 8176 | -7/Lower Caves | X0-1V1 revealed exit location to -7/Lower Caves 8294 | -7/Lower Caves | Forcibly received Sfc. Transmogifier from X0-1V1 8320 | -7/Lower Caves | Attracted the attention of an 0b10 checkpoint 8439 | -7/Lower Caves | Entered another Lower Caves area 8455 | -7/Lower Caves | Discovered exit to Factory (range 21) 8601 | -7/Lower Caves | Identified exit to Zion 8601 | -7/Lower Caves | X0-1V1 revealed exit location to -7/Zion 8821 | -7/Lower Caves | Build established: Scavenger-Gunner 9048 | -7/Lower Caves | Learned Factory trap positions 9088 | -7/Lower Caves | Spotted B-75 Beast 9112 | -7/Lower Caves | X0-1V1 sent hostile H-55 Commando (x3) 9122 | -7/Lower Caves | X0-1V1 mutated your Propulsion slot to Weapon slot 9140 | -7/Lower Caves | Entered Zion 9230 | -7/Zion | System corruption cleaned by Quarantine Array 9254 | -7/Zion | Discovered new exit (range 20) 9397 | -7/Zion | Visited the Megawrench Repair Shop 9554 | -7/Zion | Found CR-A16's Pointy Stick 9911 | -7/Zion | Learned location of Warlord (-5) 10099 | -7/Zion | Learned Factory trap positions 10423 | -7/Zion | Given the Hacking Drone Bay 10425 | -7/Zion | Found Prototype Device 10764 | -7/Zion | Megawrench repaired 11 parts 10888 | -7/Zion | Identified Hacking Drone Bay 11045 | -7/Zion | Met Imprinter 11077 | -7/Zion | Imprinted 11079 | -7/Zion | Declared Zion's savior 11232 | -7/Zion | Identified Molecular Deconstructor 11488 | -7/Zion | Received a visual enhancement algorithm 11576 | -7/Zion | Entered Proximity Caves 11576 | -6/Proximity Caves | Accompanied by 4 allies 11735 | -6/Proximity Caves | X0-1V1 mutated your Utility slot to Propulsion slot 12003 | -6/Proximity Caves | X0-1V1 mutated your Weapon slot to Propulsion slot 12107 | -6/Proximity Caves | Discovered exit to Factory (range 10) 12132 | -6/Proximity Caves | System corruption reached 10% 12239 | -6/Proximity Caves | Entered Factory 12239 | -6/Factory | Accompanied by 3 allies 12239 | -6/Factory | Evolved 2 slots: Utility x2 12240 | -6/Factory | Loaded intel: 76 trap records 12667 | -6/Factory | Retrieved Zion intel report: Branch Access 12667 | -6/Factory | Identified exit to Lower Caves 12667 | -6/Factory | Identified exit to Extension 12782 | -6/Factory | X0-1V1 sent allied Wizard (x5) 12784 | -6/Factory | Garrison activated, responded to threat 12800 | -6/Factory | Garrison activated, responded to threat 12857 | -6/Factory | Lost 4 allies 12907 | -6/Factory | X0-1V1 activates XOMVISION 13053 | -6/Factory | Retrieved Zion intel report: Prototype Schematics 13054 | -6/Factory | Zion Heavy squad teleported in 13260 | -6/Factory | Repaired Imp. Medium Armor Plating 13282 | -6/Factory | Build established: Scavenger-Mutant 13387 | -6/Factory | Zion hero teleported in (NK-0LA) 13485 | -6/Factory | Terminal network hard line cut 13532 | -6/Factory | Entered Extension 13532 | -6/Extension | Accompanied by 4 allies (NK-0LA) 13768 | -6/Extension | Rescued a captive Derelict 13769 | -6/Extension | Rescued a captive Derelict 13780 | -6/Extension | Zion Light squad teleported in 13873 | -6/Extension | Zion Offense Resupply teleported in 13956 | -6/Extension | Rescued A7 14061 | -6/Extension | Rescued a captive Derelict 14080 | -6/Extension | Build established: Commander-Gunner 14113 | -6/Extension | Zion Recon squad teleported in 14613 | -6/Extension | Spotted B-75 Beast 14618 | -6/Extension | Destroyed B-75 Beast 14633 | -6/Extension | Spotted B-75 Beast 14647 | -6/Extension | Destroyed B-75 Beast 14658 | -6/Extension | Extracted ID and sensor layout for unrecognized location from A7's data core 14703 | -6/Extension | Found Zio. Weapon Casing 14831 | -6/Extension | Discovered new exit (range 16) 14832 | -6/Extension | Discovered new exit (range 15) 14885 | -6/Extension | Entered Cetus 14885 | -6/Cetus | Accompanied by 14 allies (NK-0LA) 14906 | -6/Cetus | Spotted Cetus Guard 14907 | -6/Cetus | Spotted Cetus Guard 14912 | -6/Cetus | Spotted Cetus Guard 14915 | -6/Cetus | Allies destroyed Cetus Guard 14915 | -6/Cetus | Spotted Cetus Guard 14919 | -6/Cetus | Allies destroyed Cetus Guard 14928 | -6/Cetus | Allies destroyed Cetus Guard 14936 | -6/Cetus | Allies destroyed Cetus Guard 14965 | -6/Cetus | Lost 3 allies 15020 | -6/Cetus | Found Zio. Weapon Casing 15103 | -6/Cetus | Discovered new exit (range 16) 15163 | -6/Cetus | Destroyed Cetus Guard 15177 | -6/Cetus | Spotted Cetus Guard 15177 | -6/Cetus | Allies destroyed Cetus Guard 15180 | -6/Cetus | Spotted Cetus Guard 15184 | -6/Cetus | Allies destroyed Cetus Guard 15195 | -6/Cetus | Scared off Revision 17 15195 | -6/Cetus | Discovered new exit (range 9) 15264 | -6/Cetus | Build established: Scavenger-Tank 15365 | -6/Cetus | Entered Archives 15365 | -6/Archives | Accompanied by 7 allies (NK-0LA) 15413 | -6/Archives | X0-1V1 upgraded hostiles (x1) 15428 | -6/Archives | Discovered new exit (range 15) 15448 | -6/Archives | Lost 4 allies 15480 | -6/Archives | Discovered new exit (range 15) 15515 | -6/Archives | Entered Hub_04(d) 15515 | -6/Hub_04(d) | Accompanied by 3 allies (NK-0LA) 15542 | -6/Hub_04(d) | Zion Light squad teleported in 15629 | -6/Hub_04(d) | Found Zio. Weapon Casing 15640 | -6/Hub_04(d) | Lost 4 allies 15644 | -6/Hub_04(d) | X0-1V1 added 0b10 threat records associated with you (minor) 15646 | -6/Hub_04(d) | Garrison activated, responded to threat 15776 | -6/Hub_04(d) | Spotted B-75 Beast 15795 | -6/Hub_04(d) | Allies destroyed B-75 Beast 15855 | -6/Hub_04(d) | X0-1V1 announced a LAN party 15907 | -6/Hub_04(d) | Discovered new exit (range 8) 15989 | -6/Hub_04(d) | Network Hub disabled 16102 | -6/Hub_04(d) | Network Hub disabled 16103 | -6/Hub_04(d) | Disrupted transfer network 16129 | -6/Hub_04(d) | System corruption reached 10% 16130 | -6/Hub_04(d) | Entered Factory 16130 | -5/Factory | Accompanied by 1 ally (NK-0LA) 16130 | -5/Factory | Evolved 2 slots: Utility x2 16131 | -5/Factory | Loaded intel: 98 trap records 16230 | -5/Factory | Retrieved Zion intel report: Branch Access 16230 | -5/Factory | Identified exit to Upper Caves 16430 | -5/Factory | Build established: Messiah-Mutant 16615 | -5/Factory | Retrieved Zion intel report: Prototype Schematics 16616 | -5/Factory | Zion Heavy squad teleported in 16717 | -5/Factory | Repaired Imp. Shield Generator 16751 | -5/Factory | Entered Upper Caves 16751 | -5/Upper Caves | Accompanied by 3 allies (NK-0LA) 16870 | -5/Upper Caves | Attracted the attention of an 0b10 checkpoint 17051 | -5/Upper Caves | Build established: Messiah-Tank 17188 | -5/Upper Caves | Quantum Reactor reconfigured into Item Mimic 17215 | -5/Upper Caves | Discovered new exit (range 7) 17274 | -5/Upper Caves | Spotted B-75 Beast 17566 | -5/Upper Caves | Entered another Upper Caves area 17566 | -5/Upper Caves | Accompanied by 2 allies (NK-0LA) 17646 | -5/Upper Caves | Discovered new exit (range 14) 17682 | -5/Upper Caves | X0-1V1 vaporized surrounding terrain (radius 23) 17941 | -5/Upper Caves | Entered an active Warlord outpost 17958 | -5/Upper Caves | Identified exit to Warlord 17971 | -5/Upper Caves | Learned Research trap positions 17971 | -5/Upper Caves | Learned Factory emergency access door positions 17971 | -5/Upper Caves | Learned Factory security intel 17984 | -5/Upper Caves | X0-1V1 activates XOMVISION 18047 | -5/Upper Caves | Entered Warlord 18047 | -5/Warlord | Accompanied by 2 allies (NK-0LA) 18113 | -5/Warlord | System corruption cleaned by Quarantine Array 18490 | -5/Warlord | Received a Watcher feed algorithm from an ecstatic Tinkerer 18590 | -5/Warlord | Build established: Messiah-Mutant 18954 | -5/Warlord | Found Prototype Device 18954 | -5/Warlord | Identified System Purifier 18968 | -5/Warlord | Found Prototype Device 18968 | -5/Warlord | Identified Exp. Cloaking Device 18976 | -5/Warlord | Found Prototype Reactor 18976 | -5/Warlord | Identified Vortex Chain Reactor 18984 | -5/Warlord | Found Prototype Hackware 19074 | -5/Warlord | Warlord's base attacked by MAIN.C 19133 | -5/Warlord | Found Prototype Launcher 19133 | -5/Warlord | Identified Vortex Catalyst Activator 19147 | -5/Warlord | Found Prototype Piercing Weapon 19147 | -5/Warlord | Identified Vortex Lance 19201 | -5/Warlord | Identified exit to Proximity Caves 19201 | -5/Warlord | X0-1V1 revealed exit location to -4/Proximity Caves 19230 | -5/Warlord | Build established: Messiah-Tank 19314 | -5/Warlord | Rebuked by Warlord 19424 | -5/Warlord | Warlord forces counterattacked 19503 | -5/Warlord | Lost 18 allies 19553 | -5/Warlord | Spotted Striker 19569 | -5/Warlord | Crushed by falling debris 19592 | -5/Warlord | Spotted Executioner 19601 | -5/Warlord | Destroyed Executioner 19651 | -5/Warlord | Lost 11 allies 19672 | -5/Warlord | Entered Proximity Caves 19672 | -4/Proximity Caves | Accompanied by 1 ally (NK-0LA) 19960 | -4/Proximity Caves | Learned location of Armory (-4) 20022 | -4/Proximity Caves | Attracted the attention of an 0b10 outpost 20251 | -4/Proximity Caves | Discovered new exit (range 9) 20262 | -4/Proximity Caves | Attracted the attention of an 0b10 checkpoint 20301 | -4/Proximity Caves | Entered Factory 20301 | -4/Factory | Accompanied by 2 allies (NK-0LA) 20301 | -4/Factory | Evolved 2 slots: Utility x2 20320 | -4/Factory | X0-1V1 activates XOMVISION 20426 | -4/Factory | Lost 3 allies 20442 | -4/Factory | Identified exit to Research 20442 | -4/Factory | X0-1V1 revealed exit location to -3/Research 20576 | -4/Factory | Destroyed 7 combat bots 20608 | -4/Factory | X0-1V1 sent you into danger 20673 | -4/Factory | X0-1V1 sent you to a vault 20745 | -4/Factory | Found Prototype Device 20746 | -4/Factory | Identified Femtoactuators 20778 | -4/Factory | Found Prototype Slashing Weapon 20782 | -4/Factory | Identified Hvy. Scimitar of Distortion 20841 | -4/Factory | Found Gamma Bomb Array 20906 | -4/Factory | Garrison activated, responded to threat 21100 | -4/Factory | Repaired Centrium Heavy Treads 21156 | -4/Factory | Repaired Centrium Heavy Treads 21219 | -4/Factory | X0-1V1 activates XOMVISION 21343 | -4/Factory | X0-1V1 mutated your Utility slot to Power slot 21378 | -4/Factory | Garrison activated, responded to threat 21551 | -4/Factory | First assault squad dispatched 21610 | -4/Factory | X0-1V1 sent you into danger 21646 | -4/Factory | Core integrity fell below 50% 21671 | -4/Factory | Discovered exit to Research (range 18) 21676 | -4/Factory | Lost 4 parts (1n2u1w) 21683 | -4/Factory | Destroyed 11 combat bots 21879 | -4/Factory | Terminal network hard line cut 21967 | -4/Factory | Build established: Scavenger-Gunner 22038 | -4/Factory | Core integrity restored by X0-1V1 (+131) 22121 | -4/Factory | Repaired Centrium Medium Armor Plating 22232 | -4/Factory | Repaired Centrium Heavy Treads 22320 | -4/Factory | Core integrity restored by X0-1V1 (+131) 22414 | -4/Factory | Build established: Scavenger-Tank 22580 | -4/Factory | Lost 5 parts (2p1u2w) 22582 | -4/Factory | Discovered exit to Research (range 22) 22586 | -4/Factory | X0-1V1 upgraded hostiles (x2) 22590 | -4/Factory | System corruption reached 10% 22591 | -4/Factory | Entered Research 22591 | -3/Research | Evolved 2 slots: Propulsion x1, Utility x1 22591 | -3/Research | Centrium Heavy Treads reconfigured into Item Mimic 22592 | -3/Research | Loaded intel: 84 trap records 22985 | -3/Research | X0-1V1 enhanced Transport squad support 23016 | -3/Research | Cargo convoy interrupted 23266 | -3/Research | Retrieved Zion intel report: Active Terminals 23267 | -3/Research | Zion Light squad teleported in 23341 | -3/Research | First assault squad dispatched 23470 | -3/Research | Lost 7 parts (1p4n2u) 23571 | -3/Research | Identified exit to Research 23571 | -3/Research | X0-1V1 revealed exit location to -2/Research 23635 | -3/Research | Found Prototype Launcher 23635 | -3/Research | Identified Adv. Micro-nuke Launcher 23722 | -3/Research | Build established: Messiah-Gunner 23771 | -3/Research | Destroyed 11 combat bots 23813 | -3/Research | Repaired Flexi-carbon Leg? 23820 | -3/Research | Terminal network hard line cut 23835 | -3/Research | Spotted B-86 Titan 23911 | -3/Research | X0-1V1 downgraded hostiles (x1) 24279 | -3/Research | High security lockdown imminent 24286 | -3/Research | Core integrity restored by X0-1V1 (+184) 24348 | -3/Research | System corruption reached 10% 24359 | -3/Research | High security lockdown engaged 24393 | -3/Research | Lost 14 parts (3p3n1u7w) 24431 | -3/Research | Released all parts (11) 24463 | -3/Research | Core integrity fell below 50% 24473 | -3/Research | X0-1V1 sent you to a vault 24481 | -3/Research | X0-1V1 whisked you away to safety 24501 | -3/Research | X0-1V1 downgraded hostiles (x3) 24505 | -3/Research | Core integrity fell below 20% 24525 | -3/Research | Destroyed by H-71 Marshal with Heavy Mass Driver Last Messages --------------- G-67 Veteran reshaped into weaker Grunt. X0-1V1's Piety Tracker destroyed. X0-1V1 is mildly amused. Slug penetrates Earth. Penetrated by Slug. Slug penetrates Wall. Penetrated by Slug. Slug penetrates Earth. Slug penetrates Door. Slug penetrates Wall. Penetrated by Slug. System corrupted: Heat flow error (+198). X0-1V1 causes your matter storage to temporarily balloon in size. (+500 matter capacity) X0-1V1 smiles upon you. (Received Imp. Thunder Leg x3) Dropped Imp. Thunder Leg. ALERT: Suspicious intruders detected, dispatching Cutter reinforcements to area. X0-1V1 howls with laughter! Map ----- +----------------------------------------------------+ | ?????????????????????????######## """"""" "% | | ????????????????????????????????# " % *[ | | ????????????????????????????????# " % | | ????????????????????????????????+ " | | ????????????????????????????????# " # | | ????????????????????????????????# " | | ????^???????????????????????????# # | | ????????????????????????????????## ### | | ?????????????????????????????????# #?# # | | ?????????????????????????????????#=#?######## # # | | ?????????????????????????????????#=#??????# | | ??????????????????????????????####=#??????# | | ??????????????????????????????+ +??????# | | ??????????????????????????????# #??????# | | ??????????????????????????????# #??????# ## | | ??????????????????????????????# #??????# #![ | | ??????????????????????????????# ##+#??????# #!! | | ??????????????????????????????# #??????? + !*/! | | ???????????????????????######## #????? # #!! | | ???????????????????????# # #??! ?# #!* | | ???????????????????????# # ## ??# # = | | ???????????????????????# + + """???# # | | ???????????????????????# # ## ""????# # | | ???????????????????????# # ## "?????# # | | ???????????????????????#% # ## ??????# ### | | ???????????????????????##@##### ##????????# #?? | | ????????????????????????#^#???# #?????????# #?? | | ????????????????????????# #???# #?????????# #?? | | ????????????????????????# #???# #?????????# #?? | | ???????????????????????? #???? ??????????# #?? | | ???????????????????????? #???? ??????????# ### | | ??????????????????###+#? #???? ??????????# | | ?????????????????? ? ???? ??????????# | | ??????????????????? ?? ???? ??????????# | | ??????????????????? ?? ???? ########### | | ???????????????????# #?#c ???? # ] # ### | | ???????????????????# #?#cc ?????? # # | | ???????????????????# #? ?????? """ # # | | ???????????????????# #? HYc?????# """ + + | | ????????????????#### #? YYY?????# """ # # | | ????????????????+ #? Yc?????# # # | | ????????????????# #??????????# # # | | ????????????????# #??????????# # # | | ????????????????+ #??????????########### #^ | | ????????????????# #????????????????????# # | | ????????????????# #????????????????????# ### | | ????????????????+ #????????????????????# #?? | | ????????????????#### #????????????????????# #?? | | ???????????????????# #????????????????????# #?? | | ???????????????????# #????????????????????# #?? | +----------------------------------------------------+ Best States ------------- Heat Dissipation 158 Coolant Potential 80 Energy Generation 89 Energy Capacity 2100 Matter Stores 900 Matter Capacity 1000 Sight Range 28 Terrain Scan Density 10 Jamming Range 14 Base Temperature (-) 200 Armor Coverage 450 Resistance: KI 25 Resistance: TH 30 Resistance: EM 35 Weapon Shielding 100 Weapon Cycling 25 Phase Shifting 10 Evasion (%) 55 Targeting Accuracy 12 Core Analysis 6 Armor Integrity Analysis 50 Recoil Reduction 5 Item Schematics ----------------- Huge Storage Unit | -10/Materials | Hacked Impact Mace | -6/Factory | Z-intel Com. Ion Cannon | -6/Factory | Z-intel Thermal Defense Suite | -6/Factory | Z-intel Adv. EMP Blaster | -6/Factory | Z-intel Gravity Neutralizer | -6/Factory | Z-intel Ion Burst Cannon | -6/Factory | Z-intel Cld. Pulse Rifle | -6/Factory | Z-intel Force Rifle | -6/Factory | Z-intel Cld. Deuterium Engine | -6/Factory | Z-intel Rocket Array | -6/Factory | Z-intel Imp. Heavy Machine Gun | -6/Factory | Z-intel Biomechanical Wings | -6/Factory | Z-intel Hvy. Proton Cannon | -5/Factory | Z-intel Mni. Assault Cannon | -5/Factory | Z-intel Cld. Plasma Cannon | -5/Factory | Z-intel Hvy. Gatling Laser | -5/Factory | Z-intel Cld. Cesium-ion Thruster | -5/Factory | Z-intel Hvy. Proton Missile Launcher | -5/Factory | Z-intel Imp. Energy Well | -5/Factory | Z-intel Enh. Flexi-carbon Leg | -5/Factory | Z-intel Robot Schematics ------------------ None Fabricated ------------ Nothing Repaired ---------- Lgt. Treads | 74% | -10/Materials Assault Rifle | 27% | -10/Materials Assault Rifle | 37% | -10/Materials Imp. Medium Armor Plating | 27% | -6/Factory Imp. Shield Generator | 10% | -5/Factory Centrium Heavy Treads | 9% | -4/Factory Centrium Heavy Treads | 14% | -4/Factory Centrium Medium Armor Plating | 8% | -4/Factory Centrium Heavy Treads | 26% | -4/Factory Flexi-carbon Leg | 14% | -3/Research Studied --------- Particle Gun | -9/Materials | Hacked Lgt. Treads | -9/Materials | Hacked Med. Laser | -9/Materials | Hacked Imp. Light Cannon | -9/Materials | Hacked Rocket Launcher | -9/Materials | Hacked Alien Tech Used ----------------- None Achievements -------------- None Challenges ------------ None Game ------ Seed ExpertShrapnelSlamshotty Manual? 0 Play Time 03:56:05 Cumulative 467.5 hours Start 2026.06.29 @ 19:35:39 End 2026.06.30 @ 23:08:09 Sessions 7 Manual Loads 0 Difficulty Rogue Special Mode None Game No. 290 Rogue 290 Adventurer 0 Explorer 0 Win Type - Total 32 Types 16/1/7/2/1/1/1/1/0/2 Lore% 95 Gallery% 90 Achievement% 81 Wizard Run 0 Options --------- Layout 1 ASCII 0 Keyboard 0 Movement Numpad Keybinds 0 Fullscreen 1 Font 24/Proggy Map View 50x35 Zoom Use 0% Tactical HUD 0 Map Filters NONE Filters NONE Steam 1 RUN: 9c409b64-327d-424f-aefe-78142835416d